Workbook

Sheet Лист1
A1: Школа | F1: Утвердил: | G1: должность | H1: директор
A2: Типовое примерное меню приготавливаемых блюд | G2: фамилия | H2: Сидорова Е.А.
A3: Возрастная категория | G3: дата | J3: 2026
H4: день | I4: месяц | J4: год
A5: Неделя | B5: День недели | C5: Прием пищи | D5: Раздел меню | E5: Блюда | F5: Вес блюда, г | G5: Белки | H5: Жиры | I5: Углеводы | J5: Калорийность | K5: № рецептуры | L5: Цена
A6: 1 | B6: 1 | C6: Завтрак | D6: гор.блюдо | E6: Каша гречневая рассыпчатая | F6: 150 | G6: 5 | H6: 6 | I6: 34 | J6: 230
D7: гарнир | E7: котлета домашняя мясная с соусом | F7: 100 | G7: 10 | H7: 12 | I7: 7 | J7: 175
D8: гор.напиток | E8: чай с сахаром | F8: 200 | G8: 0 | H8: 0 | I8: 10 | J8: 41
D9: хлеб | E9: пшеничный , ржано - пшеничный | F9: 50 | G9: 4 | H9: 1 | I9: 23 | J9: 115
D10: закуска | E10: Салат из белокочанной капусты | F10: 60 | G10: 1 | H10: 1 | I10: 6 | J10: 82
D13: итого | F13: =SUM(F6:F12) -> 560 | G13: =SUM(G6:G12) -> 20.021 | H13: 20 | I13: 80 | J13: 643 | L13: =SUM(L6:L12) -> 0
A14: =A6 -> 1 | B14: =B6 -> 1 | C14: Обед | D14: закуска
D15: 1 блюдо
D16: 2 блюдо
D17: гарнир
D18: напиток
D19: хлеб бел.
D20: хлеб черн.
D23: итого | F23: =SUM(F14:F22) -> 0 | G23: =SUM(G14:G22) -> 0 | H23: 0 | I23: 0 | J23: 0 | L23: =SUM(L14:L22) -> 0
A24: =A6 -> 1 | B24: =B6 -> 1 | C24: Итого за день: | F24: =F13+F23 -> 560 | G24: =G13+G23 -> 20.021 | H24: 20 | I24: 80 | J24: 643 | L24: =L13+L23 -> 0
A25: 1 | B25: 2 | C25: Завтрак | D25: гор.блюдо | E25: Фрикассе из куриных грудок | F25: 100 | G25: 14 | H25: 13 | I25: 47 | J25: 362
D26: гор.напиток | E26: чай с сахаром и лимоном | F26: 200 | G26: 0 | H26: 0 | I26: 10 | J26: 41
D27: хлеб | E27: Пшеничный, ржано-пшеничный | F27: 40 | G27: 2 /0 | H27: 1 /0 | I27: 10 | J27: 49 / 40
D28: гарнир | E28: Макароны отварные со сливочным маслом | F28: 150 | G28: 5 | H28: 6 | I28: 34 | J28: 204
D29: закуска
E30: фрукт | F30: 100 | G30: 1 | H30: 1 | I30: 10 | J30: 50
D32: итого | F32: =SUM(F25:F31) -> 590 | G32: =SUM(G25:G31) -> 20.045 | H32: =SUM(H25:H31) -> 20 | I32: =SUM(I25:I31) -> 111 | J32: =SUM(J25:J31) -> 657 | L32: 0
A33: =A25 -> 1 | B33: =B25 -> 2 | C33: Обед | D33: закуска
D34: 1 блюдо
D35: 2 блюдо
D36: гарнир
D37: напиток
D38: хлеб бел.
D39: хлеб черн.
D42: итого | F42: =SUM(F33:F41) -> 0 | G42: =SUM(G33:G41) -> 0 | H42: =SUM(H33:H41) -> 0 | I42: =SUM(I33:I41) -> 0 | J42: =SUM(J33:J41) -> 0 | L42: 0
A43: =A25 -> 1 | B43: =B25 -> 2 | C43: Итого за день: | F43: =F32+F42 -> 590 | G43: =G32+G42 -> 20.045 | H43: =H32+H42 -> 20 | I43: =I32+I42 -> 111 | J43: =J32+J42 -> 657 | L43: 0
A44: 1 | B44: 3 | C44: Завтрак | D44: гор.блюдо | E44: Плов из куриных грудок с рисом | F44: 200 | G44: 15 | H44: 16 | I44: 40 | J44: 347
D45: гор.напиток | E45: чай с сахаром и яблоками | F45: 200 | G45: 0 | H45: 0 | I45: 11 | J45: 46
D46: хлеб | E46: пшеничный , ржано - пшеничный | F46: 60 | G46: 5 | H46: 1 | I46: 15 | J46: 140
D48: закуска | E48: Винегрет овощной | F48: 60 | G48: 1 | H48: 6 | I48: 6 | J48: 82
D51: итого | F51: =SUM(F44:F50) -> 520 | G51: =SUM(G44:G50) -> 21 | H51: =SUM(H44:H50) -> 23 | I51: =SUM(I44:I50) -> 72 | J51: =SUM(J44:J50) -> 615 | L51: 0
A52: =A44 -> 1 | B52: =B44 -> 3 | C52: Обед | D52: закуска
D53: 1 блюдо
D54: 2 блюдо
D55: гарнир
D56: напиток
D57: хлеб бел.
D58: хлеб черн.
D61: итого | F61: =SUM(F52:F60) -> 0 | G61: =SUM(G52:G60) -> 0 | H61: =SUM(H52:H60) -> 0 | I61: =SUM(I52:I60) -> 0 | J61: =SUM(J52:J60) -> 0 | L61: 0
A62: =A44 -> 1 | B62: =B44 -> 3 | C62: Итого за день: | F62: =F51+F61 -> 520 | G62: =G51+G61 -> 21 | H62: =H51+H61 -> 23 | I62: =I51+I61 -> 72 | J62: =J51+J61 -> 615 | L62: 0
A63: 1 | B63: 4 | C63: Завтрак | D63: гор.блюдо | E63: каша вязкая молочная гречневая со маслом | F63: 200 | G63: 7 | H63: 10 | I63: 27 | J63: 230
D64: гор.напиток | E64: чай с сахаром | F64: 200 | G64: 0 | H64: 0 | I64: 10 | J64: 41
D65: хлеб | E65: Пшеничный | F65: 30 | G65: 3 | H65: 1 | I65: 14 | J65: 75
D66: закуска | E66: Сосиска в тесте | F66: 90 | G66: 7 | H66: 7 | I66: 26 | J66: 192
E67: сыр | F67: 10 | G67: 4 | H67: 4 | I67: 0 | J67: 50
D70: итого | F70: =SUM(F63:F69) -> 530 | G70: =SUM(G63:G69) -> 21.2 | H70: =SUM(H63:H69) -> 22.05 | I70: =SUM(I63:I69) -> 77.4 | J70: =SUM(J63:J69) -> 588 | L70: 0
A71: =A63 -> 1 | B71: =B63 -> 4 | C71: Обед | D71: закуска
D72: 1 блюдо
D73: 2 блюдо
D74: гарнир
D75: напиток
D76: хлеб бел.
D77: хлеб черн.
D80: итого | F80: =SUM(F71:F79) -> 0 | G80: =SUM(G71:G79) -> 0 | H80: =SUM(H71:H79) -> 0 | I80: =SUM(I71:I79) -> 0 | J80: =SUM(J71:J79) -> 0 | L80: 0
A81: =A63 -> 1 | B81: =B63 -> 4 | C81: Итого за день: | F81: =F70+F80 -> 530 | G81: =G70+G80 -> 21.2 | H81: =H70+H80 -> 22.05 | I81: =I70+I80 -> 77.4 | J81: =J70+J80 -> 588 | L81: 0
A82: 1 | B82: 5 | C82: Завтрак | D82: гор.блюдо | E82: Картофельное пюре | F82: 150 | G82: 4 | H82: 6 | I82: 37 | J82: 221
D83: гор.напиток | E83: чай с сахаром и лимоном | F83: 200 | G83: 0 | H83: 0 | I83: 10 | J83: 41
D84: хлеб | E84: Пшеничный, ржано-пшеничный | F84: 60 | G84: 18 | H84: 14 | I84: 54 | J84: 138
E85: Котлета из птицы с соусом | F85: 100 | G85: 10 | H85: 13 | I85: 12 | J85: 201
D86: фрукты | E86: фрукт | F86: 100 | G86: 1 | H86: 1 | I86: 10 | J86: 50
D89: итого | F89: =SUM(F82:F88) -> 610 | G89: =SUM(G82:G88) -> 33.021 | H89: =SUM(H82:H88) -> 34 | I89: =SUM(I82:I88) -> 123 | J89: =SUM(J82:J88) -> 651 | L89: =SUM(L82:L88) -> 0
A90: =A82 -> 1 | B90: =B82 -> 5 | C90: Обед | D90: закуска
D91: 1 блюдо
D92: 2 блюдо
D93: гарнир
D94: напиток
D95: хлеб бел.
D96: хлеб черн.
D99: итого | F99: =SUM(F90:F98) -> 0 | G99: =SUM(G90:G98) -> 0 | H99: =SUM(H90:H98) -> 0 | I99: =SUM(I90:I98) -> 0 | J99: =SUM(J90:J98) -> 0 | L99: 0
A100: =A82 -> 1 | B100: =B82 -> 5 | C100: Итого за день: | G100: =G89+G99 -> 33.021 | H100: =H89+H99 -> 34 | I100: =I89+I99 -> 123 | J100: =J89+J99 -> 651 | L100: 0
A101: 1 | B101: 6 | C101: Завтрак | D101: гор.блюдо | E101: Макаронные изделия отварные с маслом | F101: 150 | G101: 4 | H101: 7 | I101: 35 | J101: 213
D102: гор.напиток | E102: чай с сахаром и урюком | F102: 200 | G102: 0 | H102: 0 | I102: 11 | J102: 46
D103: хлеб | E103: пшеничный, ржано - пшеничный | F103: 40 | G103: 4 | H103: 1 | I103: 22 | J103: 115
E104: Гуляш из говядины с соусом | F104: 120 | G104: 12 | H104: 7 | I104: 11 | J104: 154
E105: кондитерское изделие | F105: 40 | G105: 1 | H105: 6 | I105: 13 | J105: 113
D108: итого | F108: =SUM(F101:F107) -> 550 | G108: =SUM(G101:G107) -> 21.2 | H108: =SUM(H101:H107) -> 21.1 | I108: =SUM(I101:I107) -> 92 | J108: =SUM(J101:J107) -> 641 | L108: =SUM(L101:L107) -> 0
A109: =A101 -> 1 | B109: =B101 -> 6 | C109: Обед | D109: закуска
D110: 1 блюдо
D111: 2 блюдо
D112: гарнир
D113: напиток
D114: хлеб бел.
D115: хлеб черн.
D118: итого | F118: =SUM(F109:F117) -> 0 | G118: =SUM(G109:G117) -> 0 | H118: 0 | I118: 0 | J118: 0 | L118: =SUM(L109:L117) -> 0
A119: =A101 -> 1 | B119: =B101 -> 6 | C119: Итого за день: | F119: =F108+F118 -> 550 | G119: =G108+G118 -> 21.2 | H119: =H108+H118 -> 21.1 | I119: =I108+I118 -> 92 | J119: =J108+J118 -> 641 | L119: 0
A120: 2 | B120: 1 | C120: Завтрак | D120: гор.блюдо | E120: Каша вязкая молочная рисовая с маслом | F120: 215 | G120: 8 | H120: 9 | I120: 40 | J120: 260
D121: гор.напиток | E121: чай с сахаром | F121: 200 | G121: 0 | H121: 0 | I121: 10 | J121: 41
D122: хлеб | E122: пшеничный , ржано - пшеничный | F122: 40 | G122: 3 | H122: 1 | I122: 18 | J122: 87
E123: Ватрушка с творогом | F123: 70 | G123: 5 | H123: 8 | I123: 20 | J123: 173
E124: фрукт | F124: 100 | G124: 1 | H124: 1 | I124: 10 | J124: 50
D127: итого | F127: =SUM(F120:F126) -> 625 | G127: =SUM(G120:G126) -> 17.2 | H127: 19 | I127: 98.31 | J127: 611.14 | L127: =SUM(L120:L126) -> 0
A128: =A120 -> 2 | B128: =B120 -> 1 | C128: Обед | D128: закуска
D129: 1 блюдо
D130: 2 блюдо
D131: гарнир
D132: напиток
D133: хлеб бел.
D134: хлеб черн.
D137: итого | F137: =SUM(F128:F136) -> 0 | G137: =SUM(G128:G136) -> 0 | H137: 0 | I137: 0 | J137: 0 | L137: =SUM(L128:L136) -> 0
A138: =A120 -> 2 | B138: =B120 -> 1 | C138: Итого за день: | F138: =F127+F137 -> 625 | G138: =G127+G137 -> 17.2 | H138: =H127+H137 -> 19 | I138: =I127+I137 -> 98.31 | J138: =J127+J137 -> 611.14 | L138: 0
A139: 2 | B139: 2 | C139: Завтрак | D139: гор.блюдо | E139: Картофель тушеный | F139: 150 | G139: 4 | H139: 8 | I139: 20 | J139: 168
D140: гор.напиток | E140: чай с сахаром и лимоном | F140: 200 | G140: 0 | H140: 0 | I140: 10 | J140: 41
D141: хлеб | E141: Пшеничный, ржано-пшеничный | F141: 50 | G141: 4 | H141: 1 | I141: 22 | J141: 115
D142: фрукты | E142: Салат из моркови | F142: 60 | G142: 1 | H142: 1 | I142: 6 | J142: 82
E143: Котлета из птицы | F143: 100 | G143: 12 | H143: 10 | I143: 25 | J143: 232
D146: итого | F146: =SUM(F139:F145) -> 560 | G146: =SUM(G139:G145) -> 21.045 | H146: 20 | I146: 83 | J146: 638 | L146: =SUM(L139:L145) -> 0
A147: =A139 -> 2 | B147: =B139 -> 2 | C147: Обед | D147: закуска
D148: 1 блюдо
D149: 2 блюдо
D150: гарнир
D151: напиток
D152: хлеб бел.
D153: хлеб черн.
D156: итого | F156: =SUM(F147:F155) -> 0 | G156: =SUM(G147:G155) -> 0 | H156: 0 | I156: 0 | J156: 0 | L156: =SUM(L147:L155) -> 0
A157: =A139 -> 2 | B157: =B139 -> 2 | C157: Итого за день: | F157: =F146+F156 -> 560 | G157: =G146+G156 -> 21.045 | H157: =H146+H156 -> 20 | I157: =I146+I156 -> 83 | J157: =J146+J156 -> 638 | L157: 0
A158: 2 | B158: 3 | C158: Завтрак | D158: гор.блюдо | E158: Макаронные изделия отварные с маслом | F158: 150 | G158: 4 | H158: 7 | I158: 35 | J158: 213
D159: гор.напиток | E159: чай с сахаром и яблоками | F159: 200 | G159: 0 | H159: 0 | I159: 11 | J159: 46
D160: хлеб | E160: пшеничный , ржано - пшеничный | F160: 50 | G160: 4 | H160: 1 | I160: 22 | J160: 115
D161: закуска | E161: Огурцы свежие порционно | F161: 60 | G161: 1 | H161: 3 | I161: 7 | J161: 57
E162: Сосиска отварная с соусом | F162: 120 | G162: 11 | H162: 8 | I162: 11 | J162: 158
D165: итого | F165: =SUM(F158:F164) -> 580 | G165: =SUM(G158:G164) -> 20 | H165: 19.1 | I165: 86 | J165: 589 | L165: =SUM(L158:L164) -> 0
A166: =A158 -> 2 | B166: =B158 -> 3 | C166: Обед | D166: закуска
D167: 1 блюдо
D168: 2 блюдо
D169: гарнир
D170: напиток
D171: хлеб бел.
D172: хлеб черн.
D175: итого | F175: =SUM(F166:F174) -> 0 | G175: =SUM(G166:G174) -> 0 | H175: 0 | I175: 0 | J175: 0 | L175: =SUM(L166:L174) -> 0
A176: =A158 -> 2 | B176: =B158 -> 3 | C176: Итого за день: | F176: =F165+F175 -> 580 | G176: =G165+G175 -> 20 | H176: =H165+H175 -> 19.1 | I176: =I165+I175 -> 86 | J176: =J165+J175 -> 589 | L176: 0
A177: 2 | B177: 4 | C177: Завтрак | D177: гор.блюдо | E177: Каша гречневая рассыпчатая | F177: 150 | G177: 7 | H177: 8 | I177: 34 | J177: 230
D178: гор.напиток | E178: чай с сахаром | F178: 200 | G178: 0 | H178: 0 | I178: 10 | J178: 41
D179: хлеб | E179: пшеничный , ржано - пшеничный | F179: 60 | G179: 4 | H179: 1 | I179: 22 | J179: 115
E180: Фрикассе из куриных грудок | F180: 100 | G180: 7 | H180: 6 | I180: 3 | J180: 91
D181: закуска | E181: фрукт | F181: 100 | G181: 1 | H181: 1 | I181: 10 | J181: 50
D184: итого | F184: =SUM(F177:F183) -> 610 | G184: =SUM(G177:G183) -> 19 | H184: 16 | I184: 79 | J184: 527 | L184: =SUM(L177:L183) -> 0
A185: =A177 -> 2 | B185: =B177 -> 4 | C185: Обед | D185: закуска
D186: 1 блюдо
D187: 2 блюдо
D188: гарнир
D189: напиток
D190: хлеб бел.
D191: хлеб черн.
D194: итого | F194: =SUM(F185:F193) -> 0 | G194: =SUM(G185:G193) -> 0 | H194: 0 | I194: 0 | J194: 0 | L194: =SUM(L185:L193) -> 0
A195: =A177 -> 2 | B195: =B177 -> 4 | C195: Итого за день: | F195: =F184+F194 -> 610 | G195: =G184+G194 -> 19 | H195: =H184+H194 -> 16 | I195: =I184+I194 -> 79 | J195: =J184+J194 -> 527 | L195: =L184+L194 -> 0
A196: 2 | B196: 5 | C196: Завтрак | D196: гор.блюдо | E196: Плов из куриных грудок с рисом | F196: 200 | G196: 15 | H196: 16 | I196: 40 | J196: 347
D197: гор.напиток | E197: чай с сахаром и лимоном | F197: 200 | G197: 0 | H197: 0 | I197: 11 | J197: 46
D198: хлеб | E198: пшеничный , ржано - пшеничный | F198: 60 | G198: 5 | H198: 1 | I198: 15 | J198: 140
D200: фрукты | E200: Салат из отварной свеклы | F200: 60 | G200: 1 | H200: 6 | I200: 6 | J200: 82
D203: итого | F203: =SUM(F196:F202) -> 520 | G203: =SUM(G196:G202) -> 21 | H203: 23 | I203: 72 | J203: 615 | L203: =SUM(L196:L202) -> 0
A204: =A196 -> 2 | B204: =B196 -> 5 | C204: Обед | D204: закуска
D205: 1 блюдо
D206: 2 блюдо
D207: гарнир
D208: напиток
D209: хлеб бел.
D210: хлеб черн.
D213: итого | F213: =SUM(F204:F212) -> 0 | G213: =SUM(G204:G212) -> 0 | H213: 0 | I213: 0 | J213: 0 | L213: =SUM(L204:L212) -> 0
A214: =A196 -> 2 | B214: =B196 -> 5 | C214: Итого за день: | G214: =G203+G213 -> 21 | H214: =H203+H213 -> 23 | I214: =I203+I213 -> 72 | J214: =J203+J213 -> 615 | L214: =L203+L213 -> 0
A215: 2 | B215: 6 | C215: Завтрак | D215: гор.блюдо | E215: Картофельное пюре | F215: 150 | G215: 4 | H215: 6 | I215: 37 | J215: 221
D216: гор.напиток | E216: чай с сахаром и яблоками | F216: 200 | G216: 0 | H216: 0 | I216: 10 | J216: 41
D217: хлеб | E217: Пшеничный, ржано-пшеничный | F217: 60 | G217: 18 | H217: 14 | I217: 54 | J217: 138
D218: закуска | E218: Тефтели "Рыбацкие" | F218: 100 | G218: 10 | H218: 13 | I218: 12 | J218: 201
E219: кондитерское изделие | F219: 40 | G219: 1 | H219: 6 | I219: 13 | J219: 113
D222: итого | F222: =SUM(F215:F221) -> 550 | G222: =SUM(G215:G221) -> 33.021 | H222: 39 | I222: 126 | J222: 714 | L222: =SUM(L215:L221) -> 0
A223: =A215 -> 2 | B223: 6 | C223: Обед | D223: закуска
D224: 1 блюдо
D225: 2 блюдо
D226: гарнир
D227: напиток
D228: хлеб бел.
D229: хлеб черн.
D232: итого | F232: =SUM(F223:F231) -> 0 | G232: =SUM(G223:G231) -> 0 | H232: 0 | I232: 0 | J232: 0 | L232: =SUM(L223:L231) -> 0
A233: =A215 -> 2 | B233: 6 | C233: Итого за день: | F233: =F222+F232 -> 550 | G233: =G222+G232 -> 33.021 | H233: =H222+H232 -> 39 | I233: =I222+I232 -> 126 | J233: =J222+J232 -> 714 | L233: =L222+L232 -> 0
C234: Среднее значение за период: | F234: =(F24+F43+F62+F81+F100+F119+F138+F157+F176+F195+F214+F233)/(IF(F24=0,0,1)+IF(F43=0,0,1)+IF(F62=0,0,1)+IF(F81=0,0,1)+IF(F100=0,0,1)+IF(F119=0,0,1)+IF(F138=0,0,1)+IF(F157=0,0,1)+IF(F176=0,0,1)+IF(F195=0,0,1)) -> 630.5555556 | G234: =(G24+G43+G62+G81+G100+G119+G138+G157+G176+G195+G214+G233)/(IF(G24=0,0,1)+IF(G43=0,0,1)+IF(G62=0,0,1)+IF(G81=0,0,1)+IF(G100=0,0,1)+IF(G119=0,0,1)+IF(G138=0,0,1)+IF(G157=0,0,1)+IF(G176=0,0,1)+IF(G195=0,0,1)) -> 26.7753 | H234: =(H24+H43+H62+H81+H100+H119+H138+H157+H176+H195+H214+H233)/(IF(H24=0,0,1)+IF(H43=0,0,1)+IF(H62=0,0,1)+IF(H81=0,0,1)+IF(H100=0,0,1)+IF(H119=0,0,1)+IF(H138=0,0,1)+IF(H157=0,0,1)+IF(H176=0,0,1)+IF(H195=0,0,1)) -> 27.625 | I234: =(I24+I43+I62+I81+I100+I119+I138+I157+I176+I195+L214+L233)/(IF(I24=0,0,1)+IF(I43=0,0,1)+IF(I62=0,0,1)+IF(I81=0,0,1)+IF(I100=0,0,1)+IF(I119=0,0,1)+IF(I138=0,0,1)+IF(I157=0,0,1)+IF(I176=0,0,1)+IF(I195=0,0,1)) -> 90.171 | J234: =(J24+J43+J62+J81+J100+J119+J138+J157+J176+J195+J214+J233)/(IF(J24=0,0,1)+IF(J43=0,0,1)+IF(J62=0,0,1)+IF(J81=0,0,1)+IF(J100=0,0,1)+IF(J119=0,0,1)+IF(J138=0,0,1)+IF(J157=0,0,1)+IF(J176=0,0,1)+IF(J195=0,0,1)) -> 748.914 | L234: =(L24+L43+L62+L81+L100+L119+L138+L157+L176+L195+L214+L233)/(IF(L24=0,0,1)+IF(L43=0,0,1)+IF(L62=0,0,1)+IF(L81=0,0,1)+IF(L100=0,0,1)+IF(L119=0,0,1)+IF(L138=0,0,1)+IF(L157=0,0,1)+IF(L176=0,0,1)+IF(L195=0,0,1)) -> 
